bitfinex/quotes_ETHUSD_20250424
["timestamp","ask_amount","ask_price","bid_price","bid_amount"]
[1745513099802,8.64230964,1772.4,1772.1,1.31912882]
[1745513100307,0.8227,1772.5,1772.2,0.52312882]
[1745513100520,5.64153625,1772.6,1772.2,0.52312882]
[1745513100807,3.0,1772.4,1772.3,0.52312882]
[1745513101674,8.64206725,1772.4,1772.3,0.52312882]
[1745513102427,9.78290365,1772.6,1772.3,0.52312882]
[1745513102585,4.14132363,1772.6,1772.3,0.52312882]
[1745513102883,10.15541569,1772.6,1772.3,0.52312882]
[1745513103093,6.65747359,1772.5,1772.3,0.52312882]
[1745513103290,9.65747359,1772.5,1772.4,0.52312882]
[1745513103490,3.0,1772.5,1772.4,0.52312882]
[1745513104526,3.0,1772.7,1772.4,1.34522882]
[1745513104691,6.44532826,1773.0,1772.5,5.64160755]
[1745513105020,6.50159261,1773.0,1772.5,5.64160755]
[1745513105218,4.30703387,1773.0,1772.6,0.8221]
[1745513105393,0.31614525,1772.9,1772.7,0.52312882]
[1745513105717,0.31614525,1772.9,1772.8,0.52312882]
[1745513105924,3.31614525,1772.9,1772.8,0.52312882]
[1745513106094,0.31614525,1772.9,1772.8,0.52312882]
[1745513106421,3.0,1772.9,1772.8,0.52312882]
[1745513108625,0.7798,1773.1,1772.8,0.52312882]
[1745513108801,11.2794874,1773.2,1772.9,0.7527]
[1745513109126,3.0,1773.1,1772.9,0.7527]
[1745513109428,3.31569192,1773.1,1772.9,0.7527]
[1745513109824,8.95561108,1773.1,1772.9,0.7527]
[1745513110137,8.63991916,1773.1,1772.7,0.7527]
[1745513110344,8.63991916,1773.1,1772.7,6.39381117]
[1745513110543,8.63991916,1773.1,1772.8,0.52162351]
[1745513111144,3.0,1773.1,1772.8,0.52162351]
[1745513111315,3.0,1773.1,1772.9,0.52162351]
[1745513111727,8.63987705,1773.1,1772.7,0.7527]
[1745513111939,5.64016748,1773.0,1772.7,0.7527]
[1745513112306,9.42563466,1773.1,1772.7,0.7527]
[1745513112505,9.42563466,1773.1,1772.7,6.39381223]
[1745513112506,3.0,1773.1,1772.7,6.39381223]
[1745513112707,8.63987278,1773.1,1772.8,0.52130947]
[1745513112999,5.64019805,1773.0,1772.7,0.7527]
[1745513113212,5.64055905,1772.9,1772.7,0.7527]
[1745513113432,5.64055905,1772.9,1772.4,5.64187469]
[1745513113433,5.64055905,1772.9,1772.6,0.7535]
[1745513114233,3.0,1772.9,1772.6,0.7535]
[1745513114438,3.0,1772.9,1772.7,0.52106899]
[1745513114930,3.0,1772.9,1772.6,0.7535]
[1745513115631,3.0,1772.9,1772.3,1.00272483]
[1745513115831,3.0,1772.8,1772.4,6.98317188]
[1745513116047,3.0,1772.8,1772.4,1.34111413]
[1745513116200,3.0,1773.0,1772.7,0.8013]
[1745513116406,8.6401692,1773.0,1772.7,0.8013]
[1745513117233,5.6404845,1772.9,1772.5,5.64158691]
[1745513117539,10.1481747,1773.0,1772.5,12.06388329]
[1745513117713,10.1481747,1773.0,1772.6,0.52087885]
[1745513118046,14.24240676,1773.0,1772.6,0.52087885]
[1745513118222,5.64049075,1772.9,1772.5,6.42228691]
[1745513118750,8.60200718,1773.0,1772.5,6.42228691]
[1745513119049,14.24242752,1773.0,1772.6,0.52079723]
[1745513119349,14.24242752,1773.0,1772.7,0.52079723]
[1745513119947,5.64049994,1772.9,1772.6,0.69430841]
[1745513120434,14.24244167,1773.0,1772.6,0.69430841]
[1745513120745,8.60200718,1773.0,1772.7,0.5208005]
[1745513121252,8.65827153,1773.0,1772.7,0.5208005]
[1745513121425,5.6406165,1772.9,1772.5,0.7807]
[1745513121808,5.6406165,1772.9,1772.6,0.52088787]
[1745513122642,5.6406165,1772.9,1772.5,0.7807]
[1745513122845,5.64095445,1772.8,1772.5,0.7807]
[1745513123548,11.28134012,1772.9,1772.6,0.52116398]
[1745513123921,5.64081978,1772.8,1772.5,0.7807]
[1745513125254,5.64081978,1772.8,1772.6,0.52138836]
[1745513125613,5.64081978,1772.8,1772.5,0.7807]
[1745513125811,5.64063164,1772.9,1772.5,6.4224313]
[1745513126027,11.2813584,1772.9,1772.5,0.7807]
[1745513126223,5.64080361,1772.8,1772.5,0.7807]
[1745513126442,3.0,1772.5,1772.3,0.8217]
[1745513126753,8.64185117,1772.5,1772.4,0.52197966]
[1745513127118,3.0,1772.5,1772.4,0.52197966]
[1745513128741,3.05626435,1772.5,1772.4,0.52197966]
[1745513128950,8.69801329,1772.5,1772.4,0.52197966]
[1745513129322,3.0,1772.5,1772.4,0.52197966]
[1745513130022,8.64174894,1772.5,1772.4,0.52197966]
[1745513131356,8.64174894,1772.5,1772.4,0.81837393]
[1745513131952,3.0,1772.5,1772.4,0.81837393]
[1745513134851,8.64174894,1772.5,1772.4,0.81837393]
[1745513135045,10.86210741,1772.5,1772.4,0.81837393]
[1745513135457,10.91837176,1772.5,1772.4,0.81837393]
[1745513136831,10.86210741,1772.5,1772.4,0.81837393]
[1745513139163,9.42814894,1772.5,1772.4,0.81837393]
[1745513142226,9.48441329,1772.5,1772.4,0.81837393]
[1745513142865,9.80073322,1772.5,1772.4,0.81837393]
[1745513143567,9.74446887,1772.5,1772.4,0.81837393]
[1745513143862,9.42814894,1772.5,1772.4,0.81837393]
[1745513147555,3.0,1771.9,1771.8,0.27279348]
[1745513148088,8.64365934,1771.9,1771.8,0.27279348]
[1745513149379,3.0,1771.9,1771.8,0.27279348]
[1745513152464,8.64365934,1771.9,1771.8,0.27279348]
[1745513152951,3.0,1771.9,1771.8,0.27279348]
[1745513153152,3.0,1771.9,1771.5,6.8101111]
[1745513153480,3.0,1771.9,1771.8,0.27284668]
[1745513153680,3.0,1771.9,1771.5,8.54973093]
[1745513153848,3.0,1771.9,1771.8,0.27284668]
[1745513154050,3.0,1771.9,1771.5,8.54968775]
[1745513154257,3.0,1771.9,1771.8,0.27284668]
[1745513154464,3.0,1771.9,1771.5,6.81006792]
[1745513154665,3.0,1771.9,1771.8,0.27284668]
[1745513154867,3.0,1771.9,1771.5,6.81006792]
[1745513155067,8.64365934,1771.9,1771.8,0.27284668]
[1745513155693,8.64365934,1771.9,1771.5,1.1652979]
[1745513155895,3.0,1771.9,1771.8,0.27284668]
[1745513156097,4.42872119,1771.9,1771.5,12.45471687]
[1745513156284,3.0,1771.9,1771.8,0.27284668]
[1745513156800,3.0,1771.9,1771.5,6.80999664]
[1745513156964,3.0,1771.9,1771.8,0.27595101]
[1745513157164,3.0,1771.9,1771.5,6.80999664]
[1745513157398,8.64366479,1771.9,1771.8,0.27595101]
[1745513157594,8.64366479,1771.9,1771.5,6.80999664]
[1745513157595,10.07238834,1771.9,1771.5,6.80999664]
[1745513157802,3.0,1771.9,1771.8,0.27595101]
[1745513157995,3.0,1771.9,1771.5,6.80999664]
[1745513158166,3.0,1771.9,1771.8,0.27595101]
[1745513158368,3.0,1771.9,1771.5,6.80999664]
[1745513158666,3.0,1771.9,1771.8,0.27595101]
[1745513158867,3.0,1771.9,1771.5,6.80999664]
[1745513159199,3.0,1771.9,1771.6,0.52261585]
[1745513159399,3.0,1771.9,1771.6,6.44318679]
[1745513159695,3.0,1772.0,1771.8,0.7741]
[1745513159899,8.64346818,1772.0,1771.8,0.7741]
[1745513160103,8.64346818,1772.0,1771.9,0.79854525]
[1745513160403,10.20449704,1772.0,1771.9,0.79854525]
[1745513160601,10.14823269,1772.0,1771.9,0.79854525]
[1745513160779,10.14823269,1772.0,1771.9,0.2759294]
[1745513161304,10.14823269,1772.0,1771.6,5.64457514]
[1745513161509,8.64334085,1772.0,1771.9,0.2759294]
[1745513161691,8.64334085,1772.0,1771.7,0.7962]
[1745513162001,5.64282972,1772.2,1771.8,0.79861235]
[1745513162206,6.39699484,1772.3,1771.8,0.79861235]
[1745513162418,5.64249484,1772.3,1771.9,6.40349156]
[1745513162707,11.28452225,1772.4,1772.0,0.52266134]
[1745513162905,2.29310657,1772.5,1772.1,6.42749029]
[1745513163107,4.942,1772.6,1772.1,0.7847]
[1745513163108,10.6399154,1772.6,1772.1,0.7847]
[1745513163310,5.64233346,1772.4,1772.2,0.27869017]
[1745513163477,5.6422153,1772.4,1772.2,0.27869017]
[1745513163678,3.0,1772.4,1772.3,0.52266134]
[1745513163906,12.10284641,1772.5,1772.3,0.52266134]
[1745513164073,8.16533179,1772.5,1772.3,0.80034642]
[1745513164270,7.34624812,1772.5,1772.3,0.27768508]
[1745513164474,8.64176348,1772.5,1772.4,0.52247185]
[1745513164887,8.64176348,1772.5,1772.4,0.79905878]
[1745513165703,8.64176348,1772.5,1772.4,0.27658693]
[1745513166077,8.64176348,1772.5,1772.2,0.52274498]
[1745513166312,8.64176348,1772.5,1772.4,0.27658284]
[1745513166511,10.56430116,1772.5,1772.3,0.27660444]
[1745513166712,10.56430116,1772.5,1772.4,0.799336]
[1745513168424,4.92253768,1772.5,1772.4,0.27659102]
[1745513168882,10.56433068,1772.5,1772.1,6.42752586]
[1745513169082,8.641793,1772.5,1772.4,0.27659102]
[1745513169278,9.47375735,1772.5,1772.1,0.7847]
[1745513169478,9.417493,1772.5,1772.4,0.27399452]
[1745513169713,9.417493,1772.5,1772.2,0.52294422]
[1745513169917,9.417493,1772.5,1772.3,0.79618662]
[1745513170121,5.64206725,1772.4,1772.3,0.79618662]
[1745513170290,5.64206725,1772.4,1772.3,0.2732424]
[1745513170702,5.64206725,1772.4,1772.1,0.7847]
[1745513170933,5.64249963,1772.3,1772.2,0.79603769]
[1745513171094,9.77095632,1772.3,1772.2,0.79603769]
[1745513172798,3.0,1772.3,1772.2,0.79603769]
[1745513173137,8.6423856,1772.3,1772.2,0.79603769]
[1745513174909,2.77580506,1772.5,1772.2,0.79603769]
[1745513175103,8.95776986,1772.6,1772.3,0.7949]
[1745513175304,5.64187835,1772.5,1772.3,0.7949]
[1745513175625,8.64187835,1772.5,1772.4,0.79672814]
[1745513176332,8.64187835,1772.5,1772.4,0.52277369]
[1745513176750,8.64187835,1772.5,1772.4,0.79672814]
[1745513176904,10.07023828,1772.5,1772.4,0.79672814]
[1745513178609,10.12650263,1772.5,1772.4,0.79672814]
[1745513178822,10.07023828,1772.5,1772.4,0.27395445]
[1745513179008,10.12650263,1772.5,1772.4,0.27395445]
[1745513179207,15.76856726,1772.5,1772.1,0.52291406]
[1745513179533,10.07023828,1772.5,1772.4,0.27395445]
[1745513179746,10.07023828,1772.5,1772.1,0.7519]
[1745513179906,8.64187835,1772.5,1772.4,0.27395445]
[1745513180237,8.64187835,1772.5,1772.4,0.27380718]
[1745513180609,8.64187835,1772.5,1772.2,5.64268268]
[1745513180610,3.0,1772.5,1772.2,5.64268268]
[1745513180975,0.7517,1772.7,1772.4,1.10102009]
[1745513181114,0.85306435,1773.1,1772.7,5.64102393]
[1745513181312,7.05581474,1773.1,1772.7,0.7897]
[1745513181529,5.64016541,1773.0,1772.8,0.27291448]
[1745513181728,7.05581474,1773.1,1772.8,0.27291448]
[1745513181926,3.0,1773.0,1772.9,0.52237655]
[1745513182237,6.25901474,1773.1,1772.9,0.79521302]
[1745513182540,3.0,1773.0,1772.9,0.79521302]
[1745513182704,3.8231,1773.0,1772.9,0.79521302]
[1745513182908,10.44542374,1773.0,1772.9,0.79521302]
[1745513183108,5.64144405,1772.6,1772.4,0.7551]
[1745513183504,5.64144405,1772.6,1772.5,0.7670917]
[1745513184860,8.6977084,1772.6,1772.5,0.7670917]
[1745513185061,10.15765408,1772.6,1772.5,0.7670917]
[1745513185360,11.21664326,1772.6,1772.5,0.24462652]
[1745513185565,5.64236691,1772.4,1772.0,5.726]
[1745513185941,5.64236691,1772.4,1772.1,0.77023658]
[1745513186141,5.64236691,1772.4,1772.1,1.98419326]
[1745513186341,5.64236691,1772.4,1772.2,0.52321641]
[1745513186669,5.64236691,1772.4,1772.3,0.77019339]
[1745513187660,14.28396857,1772.5,1772.3,0.77019339]
[1745513187872,8.64194279,1772.5,1772.3,0.77019339]
[1745513188074,8.64194279,1772.5,1772.3,0.24697698]
[1745513188566,8.64194279,1772.5,1772.0,11.36933021]
[1745513188736,8.64194279,1772.5,1772.4,0.24786836]
[1745513189068,5.64216438,1772.4,1772.0,7.42728669]
[1745513189364,5.64216438,1772.4,1772.1,0.52382903]
[1745513189670,5.64216438,1772.4,1772.2,0.52382903]
[1745513190266,5.64216438,1772.4,1772.3,0.52382903]
[1745513190466,5.64216438,1772.4,1772.3,0.77183158]
[1745513192470,8.64194279,1772.5,1772.3,0.77183158]
[1745513192776,5.64206725,1772.4,1772.3,0.24800255]
[1745513193270,5.64206725,1772.4,1772.3,0.25087277]
[1745513193480,8.64194279,1772.5,1772.1,5.64300116]
[1745513193639,8.64194279,1772.5,1772.3,0.25087277]
[1745513193839,8.64194279,1772.5,1772.2,1.63668221]
[1745513194075,3.0,1772.5,1772.4,0.25083892]
[1745513194272,3.0,1772.5,1772.2,1.38580012]
[1745513194475,3.0,1772.5,1772.4,0.25083892]
[1745513194678,8.64174894,1772.5,1772.2,0.8215]
[1745513194971,8.64174894,1772.5,1772.4,0.25083892]
[1745513195172,8.64174894,1772.5,1772.3,0.7746356]
[1745513195376,8.64174894,1772.5,1772.4,0.77461402]
[1745513195779,8.95824202,1772.5,1772.4,0.77461402]
[1745513197046,8.64174894,1772.5,1772.4,0.77461402]
[1745513197247,8.64174894,1772.5,1772.4,0.25083892]
[1745513197446,8.64174894,1772.5,1772.4,0.52371027]
[1745513197647,8.64174894,1772.5,1772.4,0.77416439]
[1745513198646,11.23964587,1772.5,1772.4,0.77416439]
[1745513201462,11.23964587,1772.5,1772.4,0.25045412]
[1745513201687,5.64219754,1772.4,1772.0,6.4259205]
[1745513201852,5.64219754,1772.4,1772.1,0.523873]
[1745513202052,5.9586956,1772.4,1772.1,0.523873]
[1745513202486,0.31649806,1772.4,1772.2,5.64244032]
[1745513202653,0.31649806,1772.4,1772.3,0.8311]
[1745513202985,0.31649806,1772.4,1772.3,6.9973586]
[1745513203281,3.0,1772.6,1772.3,6.9973586]
[1745513203981,3.0,1772.6,1772.3,1.354973]
[1745513204188,8.64153253,1772.6,1772.4,0.523873]
[1745513204987,3.0,1772.6,1772.5,0.523873]
[1745513205386,3.0,1772.6,1772.5,0.73326627]
[1745513205588,8.64143066,1772.6,1772.5,0.73326627]
[1745513206286,8.64143066,1772.6,1772.5,0.73331878]
[1745513206287,8.95790416,1772.6,1772.5,0.73331878]
[1745513207990,3.3164735,1772.6,1772.5,0.73331878]
[1745513208201,6.40343966,1772.8,1772.5,0.73331878]
[1745513208202,3.7625,1772.8,1772.5,0.73331878]
[1745513208499,3.0,1772.8,1772.6,0.52392551]
[1745513208695,3.0,1772.8,1772.6,0.73300301]
[1745513208870,3.0,1772.8,1772.7,0.52392551]
[1745513209073,3.0,1772.8,1772.7,0.73298143]
[1745513209493,8.64079422,1772.8,1772.7,0.73298143]
[1745513210494,10.0689321,1772.8,1772.7,0.73298143]
[1745513210699,10.88699645,1772.8,1772.7,0.73298143]
[1745513210894,11.14708243,1772.8,1772.3,6.41690779]
[1745513211203,5.64143574,1772.6,1772.4,0.20732328]
[1745513211699,8.64143574,1772.6,1772.5,0.52417154]
[1745513211886,8.64143574,1772.6,1772.5,0.73203486]
[1745513212695,8.95800796,1772.6,1772.5,0.73203486]
[1745513212995,3.31657222,1772.6,1772.5,0.73203486]
[1745513213296,3.0,1772.6,1772.5,0.73203486]
[1745513214394,5.6411335,1772.7,1772.5,0.73203486]
[1745513214998,8.6411335,1772.7,1772.6,0.52417154]
[1745513215367,8.6411335,1772.7,1772.6,0.73196871]
[1745513215666,8.95768256,1772.7,1772.6,0.73196871]
[1745513216898,8.6411335,1772.7,1772.6,0.73196871]
[1745513218597,3.31652755,1772.7,1772.6,1.49886871]
[1745513218897,0.31652755,1772.7,1772.6,1.49886871]
[1745513219101,0.31652755,1772.7,1772.6,7.85434059]
[1745513219698,5.63999922,1773.1,1772.7,5.64100211]
[1745513219899,4.933,1773.2,1772.9,6.454145]
[1745513220099,6.42071492,1773.4,1773.0,0.20723158]
[1745513220299,6.47697927,1773.4,1773.0,0.20723158]
[1745513220504,8.63929656,1773.3,1773.0,0.20723158]
[1745513220800,5.63860853,1773.5,1773.2,0.8305]
[1745513221000,3.31638877,1773.4,1773.2,0.8305]
[1745513221302,3.31638877,1773.4,1773.3,0.73071398]
[1745513221784,3.0,1773.4,1773.3,0.73071398]
[1745513222495,5.63781473,1773.8,1773.3,6.36978818]
[1745513222804,6.01001559,1773.8,1773.5,0.8305]
[1745513223005,5.95375124,1773.8,1773.5,0.8305]
[1745513223193,0.31595422,1773.8,1773.6,0.20229218]
[1745513223397,0.31595422,1773.8,1773.7,0.52412697]
[1745513223615,5.63741627,1773.9,1773.7,0.52412697]
[1745513223821,5.63741627,1773.9,1773.7,0.72634041]
[1745513224120,5.63741627,1773.9,1773.7,0.20221344]
[1745513224294,5.63741627,1773.9,1773.5,0.8305]
[1745513224624,5.63741627,1773.9,1773.6,0.72235298]
[1745513224787,5.69390571,1773.8,1773.6,0.72235298]
[1745513224986,5.69390571,1773.8,1773.6,0.20133716]
[1745513224987,7.47135683,1773.7,1773.6,0.20133716]
[1745513225281,5.6387425,1773.5,1773.2,0.755]
[1745513225483,5.6387425,1773.5,1773.3,0.20067246]
[1745513225797,5.63888575,1773.4,1773.3,0.20067246]
[1745513226187,5.63888575,1773.4,1773.1,0.7542]
[1745513226390,5.63888575,1773.4,1773.3,0.20067246]
[1745513226589,6.76664858,1773.4,1773.2,0.20069402]
[1745513226788,5.6387425,1773.5,1773.1,0.7542]
[1745513226789,8.63878093,1773.5,1773.3,0.20067246]
[1745513227013,5.63888575,1773.4,1773.3,0.20067246]
[1745513227202,5.63888575,1773.4,1773.1,0.7542]
[1745513227412,5.63888575,1773.4,1773.3,0.20067246]
[1745513227595,8.63870276,1773.5,1773.2,0.20069402]
[1745513227799,8.69496711,1773.5,1773.3,0.20067246]
[1745513227998,3.0,1773.5,1773.3,0.20067246]
[1745513228192,3.0,1773.5,1773.2,5.63921451]
[1745513228392,3.0,1773.5,1773.4,0.2006509]
[1745513228721,3.0,1773.5,1773.4,0.20171694]
[1745513228924,3.0,1773.5,1773.2,5.63921451]
[1745513229105,3.0,1773.5,1773.3,0.20173849]
[1745513229305,3.0,1773.5,1773.1,6.39387656]
[1745513229511,3.0,1773.5,1773.2,0.20176006]
[1745513229512,8.63858416,1773.5,1773.2,0.20176006]
[1745513229821,14.33367827,1773.5,1773.2,0.20176006]
[1745513229999,8.63858416,1773.5,1773.2,0.20176006]
[1745513230323,8.69484851,1773.5,1773.2,0.20176006]
[1745513230625,14.33369631,1773.5,1773.2,0.20176006]
[1745513230825,8.63858416,1773.5,1773.2,0.20176006]
[1745513231197,3.0,1773.5,1773.2,0.20176006]
[1745513231404,3.0,1773.5,1773.2,0.98166552]
[1745513231618,3.0,1773.5,1773.3,0.7634]
[1745513231926,3.0,1773.5,1773.4,0.20138027]
[1745513232422,3.0,1773.6,1773.4,0.20138027]
[1745513233327,5.6385678,1773.5,1773.4,0.20138027]
[1745513234221,6.8225437,1773.5,1773.4,0.20138027]
[1745513234522,6.76627935,1773.5,1773.1,0.8172]
[1745513234723,6.76627935,1773.5,1773.2,0.71714196]
[1745513234923,5.63910403,1773.4,1773.2,0.71714196]
[1745513235524,6.76641478,1773.5,1773.2,0.71714196]
[1745513235820,5.63843848,1773.6,1773.2,5.83622415]
[1745513236122,5.63843848,1773.6,1773.3,1.28539999]
[1745513236626,5.63843848,1773.6,1773.4,0.19718389]
[1745513237413,5.69470283,1773.6,1773.4,0.19718389]
[1745513238328,5.6385678,1773.5,1773.4,0.19718389]
[1745513238991,5.69483215,1773.5,1773.4,0.19718389]
[1745513239193,5.6385678,1773.5,1773.4,0.19718389]
[1745513239423,5.6385678,1773.5,1773.2,0.7596]
[1745513239620,5.6385678,1773.5,1773.4,0.19718389]
[1745513239820,5.6385678,1773.5,1773.3,0.19720545]
[1745513240027,5.6385678,1773.5,1773.4,0.19718389]
[1745513240396,5.63843848,1773.6,1773.2,0.7596]
[1745513240597,5.63843848,1773.6,1773.4,0.19718389]
[1745513240796,5.63843848,1773.6,1773.3,0.19720545]
[1745513240996,8.63843848,1773.6,1773.5,0.19716233]
[1745513241197,14.27693338,1773.6,1773.4,0.19718389]
[1745513241428,8.63843848,1773.6,1773.5,0.19716233]
[1745513241731,14.27693897,1773.6,1773.2,0.7596]
[1745513241931,5.63867908,1773.5,1773.3,0.19720545]
[1745513244025,8.63843848,1773.6,1773.3,0.19720545]
[1745513244437,8.63827573,1773.6,1773.4,0.52122728]
[1745513244795,8.63827573,1773.6,1773.5,0.19716233]
[1745513245355,5.63858562,1773.5,1773.2,0.7596]
[1745513245633,8.63827573,1773.6,1773.3,0.52147974]
[1745513245832,0.8101,1773.8,1773.4,0.7872]
[1745513246042,5.63778533,1773.8,1773.4,6.4258866]
[1745513246515,5.63778533,1773.8,1773.5,0.52147974]
[1745513246700,5.63778533,1773.8,1773.6,0.52147974]
[1745513246901,11.27563476,1773.8,1773.6,0.52147974]
[1745513247139,5.637932,1773.7,1773.6,0.52147974]
[1745513247346,3.0,1773.9,1773.6,0.52147974]
[1745513247347,5.63745218,1773.9,1773.6,0.52147974]
[1745513247515,5.63745218,1773.9,1773.7,0.52147974]
[1745513248108,5.63745218,1773.9,1773.4,6.42586034]
[1745513248333,11.27502648,1773.9,1773.4,7.16871886]
[1745513248647,11.27502648,1773.9,1773.5,0.52230347]
[1745513249142,11.27502648,1773.9,1773.6,0.52230347]
[1745513249643,11.27502648,1773.9,1773.7,0.52230347]
[1745513249841,3.0,1773.9,1773.7,0.52230347]
[1745513250042,3.0,1773.9,1773.8,0.52230347]
[1745513250504,8.63729635,1773.9,1773.8,0.71880132]
[1745513250711,8.6935607,1773.9,1773.8,0.71880132]
[1745513250912,6.06500087,1774.0,1773.8,0.71880132]
[1745513250913,0.427819,1774.0,1773.8,0.71880132]
[1745513251227,0.427819,1774.0,1773.9,6.39199635]
[1745513251426,0.427819,1774.0,1773.9,2.02952688]
[1745513251628,0.427819,1774.0,1773.9,2.7454459]
[1745513252437,0.427819,1774.0,1773.9,0.71591902]
[1745513252632,6.06479757,1774.0,1773.9,0.71591902]
[1745513252832,9.12106192,1774.0,1773.9,0.71591902]
[1745513253345,9.89416192,1774.0,1773.9,0.71591902]
[1745513253565,9.89416192,1774.0,1773.9,0.19361555]
[1745513254047,5.63794623,1773.7,1773.6,0.5222588]
[1745513255358,6.45241058,1773.7,1773.6,0.5222588]
[1745513255853,6.39614623,1773.7,1773.6,0.5222588]
[1745513257747,12.08906528,1773.8,1773.6,0.5222588]
[1745513258044,6.45115266,1773.8,1773.3,6.45946252]
[1745513258364,5.63815675,1773.7,1773.4,0.52246228]
[1745513258559,11.2763992,1773.7,1773.4,0.52246228]
[1745513258750,5.63833428,1773.6,1773.4,0.52246228]
[1745513259154,5.63833428,1773.6,1773.5,0.52246228]
[1745513259535,8.63833428,1773.6,1773.5,0.52246228]
[1745513259735,10.90090982,1773.6,1773.5,0.52246228]
[1745513260246,11.21701825,1773.6,1773.5,0.52246228]
[1745513260434,11.21701825,1773.6,1773.5,0.69926908]
[1745513260636,11.21701825,1773.6,1773.5,0.1768068]
[1745513260947,5.63901064,1773.4,1773.1,0.52246228]
[1745513261129,5.63901064,1773.4,1773.2,0.18085384]
[1745513261466,5.69492064,1773.5,1773.3,0.52246228]
[1745513261467,5.63865629,1773.5,1773.3,0.52246228]
[1745513261635,5.63865629,1773.5,1773.4,0.18081071]
[1745513261840,8.63865629,1773.5,1773.4,0.70327299]
[1745513266658,8.95465377,1773.5,1773.4,0.70327299]
[1745513266868,8.95465377,1773.5,1773.4,0.18081071]
[1745513267043,5.63893374,1773.4,1773.0,6.4521584]
[1745513267369,5.63893374,1773.4,1773.1,0.82609124]
[1745513267974,5.63893374,1773.4,1773.2,0.52303717]
[1745513268272,5.63893374,1773.4,1773.3,0.18083227]
[1745513268650,5.63893374,1773.4,1773.3,0.70386944]
[1745513269579,10.92365709,1773.4,1773.3,0.70386944]
[1745513270068,11.23964442,1773.4,1773.3,0.18083227]
[1745513270269,5.63955521,1773.2,1772.9,4.926]
[1745513270670,5.63955521,1773.2,1773.0,0.16877302]
[1745513270855,5.63955521,1773.2,1773.0,0.69194333]
[1745513271350,5.63955521,1773.2,1773.1,0.52317031]
[1745513271574,5.63955521,1773.2,1773.1,0.69192175]
[1745513273645,5.69581956,1773.2,1773.1,0.69192175]
[1745513274281,5.63955521,1773.2,1773.1,0.69192175]
[1745513274445,8.63955521,1773.2,1773.1,0.69192175]
[1745513275137,8.69581956,1773.2,1773.1,0.69192175]
[1745513275341,10.07305811,1773.2,1773.1,0.16875144]
[1745513275653,5.63993455,1773.1,1772.8,0.77]
[1745513275867,5.63993455,1773.1,1772.9,0.52276637]
[1745513276446,11.28008373,1773.1,1772.9,0.52276637]
[1745513276679,5.63993455,1773.1,1773.0,0.52276637]
[1745513277171,10.20644922,1773.1,1773.0,0.52276637]
[1745513277373,11.02704922,1773.1,1773.0,0.52276637]
[1745513278148,8.64027314,1773.0,1772.6,6.42259377]
[1745513278661,1.00272483,1773.3,1772.7,0.52271349]
[1745513278811,0.05626435,1773.3,1772.8,0.7966]
[1745513279112,3.0,1773.4,1773.1,0.7961]
[1745513279261,3.0,1773.4,1773.1,6.43591644]
[1745513279467,3.0,1773.4,1773.1,0.7961]
[1745513279818,8.63896524,1773.4,1773.2,0.52271349]
[1745513280021,3.0,1773.4,1773.1,0.7961]
[1745513280227,7.29942232,1774.0,1773.4,5.63878046]
[1745513280518,6.48936123,1773.9,1773.5,5.79674306]
[1745513280671,0.7957,1773.9,1773.5,5.79674306]
[1745513280870,16.92030121,1774.0,1773.6,0.8015]
[1745513281117,3.0,1773.8,1773.7,0.68030685]
[1745513281597,8.63761416,1773.8,1773.7,0.68030685]
[1745513281770,11.27487073,1773.9,1773.7,0.68030685]
[1745513281984,12.47456423,1773.9,1773.7,0.68030685]
[1745513282183,5.63761416,1773.8,1773.7,0.68030685]
[1745513282401,8.63761416,1773.8,1773.7,0.68030685]
[1745513282827,3.0,1773.8,1773.7,0.68030685]
[1745513283717,8.63761416,1773.8,1773.7,0.68030685]
[1745513284325,3.0,1773.8,1773.7,0.68030685]
[1745513287290,0.427819,1774.0,1773.7,0.68030685]
[1745513287519,3.48408335,1774.0,1773.7,0.68030685]
[1745513287716,10.2131065,1774.0,1773.7,0.68030685]
[1745513288108,15.85034292,1774.0,1773.7,0.68030685]
[1745513288434,15.79407751,1774.0,1773.7,0.15824513]
[1745513288608,10.15684215,1774.0,1773.7,0.15824513]
[1745513288810,10.2131065,1774.0,1773.5,5.63833918]
[1745513289011,10.66133183,1773.9,1773.8,0.15825831]
[1745513289211,6.42061171,1773.8,1773.4,6.39166629]
[1745513289606,0.7828,1773.8,1773.4,6.39166629]
[1745513289810,6.42049378,1773.8,1773.4,6.39166629]
[1745513290099,5.69433783,1773.7,1773.4,0.7528]
[1745513290300,5.69433783,1773.7,1773.5,0.52202354]
[1745513290500,5.63807348,1773.7,1773.5,0.52202354]
[1745513290822,5.63807348,1773.7,1773.6,0.52202354]
[1745513291019,8.12867634,1773.8,1773.6,0.52202354]
[1745513291345,13.82279533,1773.8,1773.4,0.7528]
[1745513291506,4.70818256,1773.8,1773.4,0.7528]
[1745513291706,4.70818256,1773.8,1773.5,0.52184758]
[1745513292040,4.70818256,1773.8,1773.6,0.52184758]
[1745513292249,7.86897509,1773.7,1773.6,0.52184758]
[1745513292556,7.86897509,1773.7,1772.6,5.64130254]
[1745513292557,5.63996975,1773.1,1772.7,11.33776717]
[1745513292701,5.63996975,1773.1,1772.7,5.6968]
[1745513292900,8.64036208,1773.0,1772.7,0.7738]
[1745513293205,8.64036208,1773.0,1772.5,6.40730056]
[1745513293206,9.69935126,1773.0,1772.5,6.40730056]
[1745513293662,9.69935126,1773.0,1772.4,4.923]
[1745513293663,5.64111698,1772.7,1772.4,4.923]
[1745513294631,3.0,1772.7,1772.4,4.923]
[1745513294800,0.8256,1772.9,1772.4,4.923]
[1745513295002,9.46615888,1772.9,1772.5,5.6416087]
[1745513295202,9.46615888,1772.9,1772.5,0.14018385]
[1745513295536,3.8256,1772.9,1772.5,11.42342172]
[1745513295708,3.0,1772.9,1772.5,5.78172444]
[1745513296127,5.64028995,1773.0,1772.6,0.8244]
[1745513296128,3.0,1773.0,1772.6,0.8244]
[1745513296337,3.0,1773.0,1772.7,0.14216016]
[1745513296538,3.0,1773.0,1772.6,6.46562317]
[1745513296701,3.0,1773.0,1772.7,5.78303083]
[1745513297032,3.0,1773.0,1772.7,5.78312882]
[1745513297249,3.0,1773.0,1772.7,0.14216016]
[1745513297766,3.0,1773.0,1772.8,0.14213448]
[1745513297947,3.0,1773.0,1772.6,6.46561044]
[1745513298156,3.0,1773.0,1772.7,0.14215607]
[1745513298462,3.99439612,1773.0,1772.6,6.46561044]
[1745513298770,3.99439612,1773.0,1772.7,0.14215607]
[1745513298973,3.99439612,1773.0,1772.7,5.64102606]
[1745513299266,3.99439612,1773.0,1772.8,0.14213448]
[1745513300435,3.99439612,1773.0,1772.6,12.10677177]
[1745513300759,3.0,1773.0,1772.6,6.46557566]